[Event "94th FRA-ch Accession 2019"]
[Site "Chartres"]
[Date "2019.08.19"]
[Round "3.5"]
[White "Cotonnec, Melkior"]
[Black "Velten, Paul"]
[Result "0-1"]
[ECO "E15"]
[WhiteElo "2299"]
[BlackElo "2527"]
[Annotator "ChessBase"]
[PlyCount "48"]
[EventDate "2019.08.17"]
[EventType "swiss"]
[EventCountry "FRA"]
[SourceTitle "playchess.com"]
[Source "ChessBase"]
[SourceQuality "1"]
[TimeControl "40/5400+30:1800+30"]

1. d4 {[%emt 0:03:47]} Nf6 {[%emt 0:00:14]} 2. c4 {[%emt 0:01:14]} e6 {[%emt 0:00:54]} 3. g3 {[%emt 0:00:21]} d5 {[%emt 0:00:28]} 4. Nf3 {[%emt 0:00:18]} Bb4+ {[%emt 0:00:52]} 5. Bd2 {[%emt 0:00:48]} Be7 {[%emt 0:00:57]} 6. Bg2 {[%emt 0:02:08]} O-O {[%emt 0:01:06]} 7. O-O {[%emt 0:05:07]} c6 {[%emt 0:00:26]} 8. Qc2 {[%emt 0:05:03]} b6 {[%emt 0:01:47]} 9. Bf4 {[%emt 0:05:36]} Ba6 {[%emt 0:02:43]} 10. b3 {[%emt 0:04:45]} Nbd7 {[%emt 0:02:05]} 11. Rd1 {[%emt 0:30:34]} Rc8 {[%emt 0:03:02]} 12. Ne5 {[%emt 0:03:57]} c5 {[%emt 0:05:09]} 13. Nxd7 {[%emt 0:10:00]} Qxd7 {[%emt 0:24:31]} 14. dxc5 {[%emt 0:03:52]} Bxc5 {[%emt 0:00:30]} 15. Nc3 {[%emt 0:00:30]} Qe7 {[%emt 0:00:30]} 16. cxd5 {[%emt 0:00:30]} Ng4 {[%emt 0:08:52]} 17. d6 {[%emt 0:19:18]} Bxf2+ {[%emt 0:00:30]} 18. Kh1 {[%emt 0:00:30]} Qf6 {[%emt 0:00:30]} 19. Rac1 {[%emt 0:00:30]} Bd4 {[%emt 0:00:30]} 20. Ne4 {[%emt 0:00:30]} Nf2+ {[%emt 0:00:30]} 21. Nxf2 {[%emt 0:00:30]} Rxc2 {[%emt 0:00:30]} 22. Ne4 {[%emt 0:00:30]} Qg6 {[%emt 0:00:30]} 23. Rxc2 {[%emt 0:00:30]} e5 {[%emt 0:00:30]} 24. Rc7 {[%emt 0:00:30]} Bxe2 {[%emt 0:00:30]} 0-1

[Event "94th FRA-ch Accession 2019"]
[Site "Chartres"]
[Date "2019.08.20"]
[Round "4.1"]
[White "Stephan, Victor"]
[Black "Lamard, Guillaume"]
[Result "1/2-1/2"]
[ECO "E32"]
[WhiteElo "2413"]
[BlackElo "2419"]
[Annotator "NA"]
[PlyCount "106"]
[EventDate "2019.08.17"]
[EventType "swiss"]
[EventCountry "FRA"]
[SourceTitle "playchess.com"]
[Source "ChessBase"]
[SourceQuality "1"]
[TimeControl "40/5400+30:1800+30"]

1. d4 {[%emt 0:00:00]} Nf6 {[%emt 0:00:00]} 2. c4 {[%emt 0:00:01]} e6 {[%emt 0:00:00]} 3. Nc3 {[%emt 0:00:39]} Bb4 {[%emt 0:00:00]} 4. Qc2 {[%emt 0:00:26]} O-O {[%emt 0:01:03]} 5. Nf3 {[%emt 0:00:38]} d6 {[%emt 0:04:24]} 6. g3 {[%emt 0:00:24]} b6 {[%emt 0:08:18]} 7. Bg2 {[%emt 0:00:45]} Bb7 {[%emt 0:00:03]} 8. O-O {[%emt 0:00:29]} Bxc3 {[%emt 0:01:55]} 9. Qxc3 {[%emt 0:01:43]} Nbd7 {[%emt 0:00:58]} 10. b4 {[%emt 0:05:53]} a5 {[%emt 0:04:41]} 11. b5 {[%emt 0:06:53]} Re8 {[%emt 0:00:57]} 12. Rd1 {[%emt 0:01:57]} Qc8 {[%emt 0:06:36]} 13. Ba3 {[%emt 0:05:07]} e5 {[%emt 0:13:30]} 14. dxe5 {[%emt 0:05:19]} Nxe5 {[%emt 0:01:46]} 15. Bb2 {[%emt 0:00:36]} Nxf3+ {[%emt 0:02:33]} 16. exf3 {[%emt 0:01:50]} Qf5 {[%emt 0:06:05]} 17. Rd3 {[%emt 0:08:21]} Re2 {[%emt 0:02:36]} 18. Re3 {[%emt 0:06:37]} Re8 {[%emt 0:02:07]} 19. Rxe8+ {[%emt 0:01:00]} Nxe8 {[%emt 0:02:17]} 20. Re1 {[%emt 0:07:07]} Rxe1+ {[%emt 0:00:58]} 21. Qxe1 {[%emt 0:00:06]} Kf8 {[%emt 0:00:03]} 22. f4 {[%emt 0:03:53]} Bxg2 {[%emt 0:00:53]} 23. Kxg2 {[%emt 0:00:05]} Qc2 {[%emt 0:00:33]} 24. Qc3 {[%emt 0:02:27]} Qe4+ {[%emt 0:00:06]} 25. f3 {[%emt 0:03:06]} Qe2+ {[%emt 0:00:20]} 26. Kg1 {[%emt 0:00:06]} h5 {[%emt 0:02:12]} 27. a3 {[%emt 0:01:28]} h4 {[%emt 0:02:08]} 28. gxh4 {[%emt 0:00:19]} Nf6 {[%emt 0:01:48]} 29. Bc1 {[%emt 0:03:01]} Nd7 {[%emt 0:02:31]} 30. h5 {[%emt 0:04:08]} f6 {[%emt 0:09:05]} 31. Bd2 {[%emt 0:00:50]} Qe8 {[%emt 0:04:42]} 32. Qe3 {[%emt 0:05:18]} Qxh5 {[%emt 0:00:06]} 33. Qe6 {[%emt 0:03:24]} Qf7 {[%emt 0:00:47]} 34. Qe4 {[%emt 0:02:46]} Nc5 {[%emt 0:07:43]} 35. Qf5 {[%emt 0:05:22]} Ke7 {[%emt 0:03:01]} 36. Qg4 {[%emt 0:05:07]} f5 {[%emt 0:03:53]} 37. Qg5+ {[%emt 0:02:43]} Kd7 {[%emt 0:00:16]} 38. Be3 {[%emt 0:01:48]} Ne6 {[%emt 0:00:18]} 39. Qh4 {[%emt 0:01:27]} Nd8 {[%emt 0:04:39]} 40. Qh8 {[%emt 0:01:23]} Qf6 {[%emt 0:00:32]} 41. Kf2 {[%emt 0:35:14]} Ne6 {[%emt 0:30:33]} 42. Qg8 {[%emt 0:00:37]} Ke7 {[%emt 0:00:07]} 43. Qh7 {[%emt 0:00:00]} Qb2+ {[%emt 0:00:00]} 44. Kg3 {[%emt 0:00:00]} Qc3 {[%emt 0:00:00]} 45. Bf2 {[%emt 0:00:00]} Kf6 {[%emt 0:00:00]} 46. Qh4+ {[%emt 0:00:00]} Kg6 {[%emt 0:00:00]} 47. Qe7 {[%emt 0:00:00]} Qxc4 {[%emt 0:00:00]} 48. Be3 {[%emt 0:00:00]} Qb3 {[%emt 0:00:00]} 49. Bf2 {[%emt 0:00:00]} Kh7 {[%emt 0:00:00]} 50. Qe8 {[%emt 0:00:00]} Qd5 {[%emt 0:00:00]} 51. h4 {[%emt 0:00:00]} Qc4 {[%emt 0:00:00]} 52. Be3 {[%emt 0:00:00]} Qb3 {[%emt 0:00:00]} 53. Bf2 {[%emt 0:00:00]} Qc4 {[%emt 0:00:00]} 1/2-1/2

[Event "94th FRA-ch Accession 2019"]
[Site "Chartres"]
[Date "2019.08.20"]
[Round "4.2"]
[White "Demuth, Adrien"]
[Black "Gatineau, Yovann"]
[Result "1-0"]
[ECO "B45"]
[WhiteElo "2495"]
[BlackElo "2363"]
[Annotator "ChessBase"]
[PlyCount "125"]
[EventDate "2019.08.17"]
[EventType "swiss"]
[EventCountry "FRA"]
[SourceTitle "playchess.com"]
[Source "ChessBase"]
[SourceQuality "1"]
[TimeControl "40/5400+30:1800+30"]

1. e4 {[%emt 0:00:00]} c5 {[%emt 0:04:41]} 2. Nf3 {[%emt 0:00:00]} e6 {[%emt 0:00:04]} 3. d4 {[%emt 0:00:00]} cxd4 {[%emt 0:00:06]} 4. Nxd4 {[%emt 0:00:00]} Nf6 {[%emt 0:00:10]} 5. Nc3 {[%emt 0:00:13]} Nc6 {[%emt 0:00:03]} 6. Nxc6 {[%emt 0:00:19]} bxc6 {[%emt 0:00:04]} 7. e5 {[%emt 0:00:05]} Nd5 {[%emt 0:00:04]} 8. Ne4 {[%emt 0:00:03]} Qc7 {[%emt 0:00:05]} 9. f4 {[%emt 0:01:08]} Qb6 {[%emt 0:01:13]} 10. c4 {[%emt 0:00:33]} Bb4+ {[%emt 0:00:05]} 11. Ke2 {[%emt 0:00:05]} f5 {[%emt 0:00:05]} 12. exf6 {[%emt 0:00:43]} Nxf6 {[%emt 0:00:07]} 13. Be3 {[%emt 0:00:14]} Qd8 {[%emt 0:00:05]} 14. Nd6+ {[%emt 0:00:04]} Bxd6 {[%emt 0:00:04]} 15. Qxd6 {[%emt 0:00:03]} c5 {[%emt 0:00:53]} 16. Qxc5 {[%emt 0:13:10]} Bb7 {[%emt 0:00:13]} 17. Rd1 {[%emt 0:14:29]} Be4 {[%emt 0:00:32]} 18. Qa3 {[%emt 0:08:07]} Kf7 {[%emt 0:12:55]} 19. Kf2 {[%emt 0:08:40]} Rf8 {[%emt 0:01:29]} 20. Be2 {[%emt 0:07:06]} Ng4+ {[%emt 0:01:52]} 21. Kg1 {[%emt 0:05:26]} Qh4 {[%emt 0:03:34]} 22. h3 {[%emt 0:02:20]} Nf6 {[%emt 0:01:37]} 23. Kh2 {[%emt 0:02:57]} Nh5 {[%emt 0:00:13]} 24. Bxh5+ {[%emt 0:02:31]} Qxh5 {[%emt 0:00:06]} 25. Rxd7+ {[%emt 0:01:16]} Kg8 {[%emt 0:00:05]} 26. Qe7 {[%emt 0:06:52]} Qg6 {[%emt 0:05:48]} 27. Qg5 {[%emt 0:00:07]} Qxg5 {[%emt 0:00:04]} 28. fxg5 {[%emt 0:00:03]} Rf7 {[%emt 0:00:05]} 29. Rhd1 {[%emt 0:01:38]} a5 {[%emt 0:01:47]} 30. Rxf7 {[%emt 0:00:23]} Kxf7 {[%emt 0:00:03]} 31. Rd7+ {[%emt 0:00:17]} Kg6 {[%emt 0:00:04]} 32. g4 {[%emt 0:00:56]} h6 {[%emt 0:02:25]} 33. Rd6 {[%emt 0:04:13]} Re8 {[%emt 0:02:29]} 34. gxh6 {[%emt 0:00:27]} gxh6 {[%emt 0:00:03]} 35. Ra6 {[%emt 0:00:21]} h5 {[%emt 0:00:04]} 36. gxh5+ {[%emt 0:03:39]} Kxh5 {[%emt 0:00:06]} 37. Rxa5+ {[%emt 0:00:03]} Kg6 {[%emt 0:00:07]} 38. b4 {[%emt 0:01:46]} e5 {[%emt 0:00:15]} 39. Bf2 {[%emt 0:07:21]} Bd3 {[%emt 0:01:12]} 40. c5 {[%emt 0:03:30]} Be4 {[%emt 0:00:25]} 41. Ra6+ {[%emt 0:33:07]} Kf5 {[%emt 0:30:08]} 42. c6 {[%emt 0:00:00]} Ke6 {[%emt 0:00:00]} 43. Bg3 {[%emt 0:00:00]} Kd6 {[%emt 0:00:00]} 44. b5 {[%emt 0:00:00]} Rf8 {[%emt 0:00:00]} 45. Be1 {[%emt 0:00:00]} Rg8 {[%emt 0:00:00]} 46. Bg3 {[%emt 0:00:00]} Rf8 {[%emt 0:00:00]} 47. a4 {[%emt 0:01:37]} Rf1 {[%emt 0:00:00]} 48. c7+ {[%emt 0:00:05]} Kxc7 {[%emt 0:00:00]} 49. Bxe5+ {[%emt 0:00:02]} Kb7 {[%emt 0:00:00]} 50. Kg3 {[%emt 0:02:00]} Rf5 {[%emt 0:00:00]} 51. Bd4 {[%emt 0:00:22]} Rd5 {[%emt 0:00:00]} 52. Be3 {[%emt 0:00:21]} Rf5 {[%emt 0:00:00]} 53. Bd4 {[%emt 0:00:42]} Rd5 {[%emt 0:00:00]} 54. Be3 {[%emt 0:00:07]} Rf5 {[%emt 0:00:00]} 55. Bf4 {[%emt 0:00:25]} Rc5 {[%emt 0:00:00]} 56. h4 {[%emt 0:00:18]} Rc2 {[%emt 0:00:00]} 57. Be5 {[%emt 0:00:19]} Rc5 {[%emt 0:00:00]} 58. Ra7+ {[%emt 0:06:08]} Kxa7 {[%emt 0:00:00]} 59. Bd4 {[%emt 0:00:04]} Kb6 {[%emt 0:00:00]} 60. h5 {[%emt 0:00:23]} Ka5 {[%emt 0:00:00]} 61. Bxc5 {[%emt 0:00:06]} Kxa4 {[%emt 0:00:00]} 62. Kf4 {[%emt 0:00:08]} Bh7 {[%emt 0:00:00]} 63. b6 {[%emt 0:00:05]} 1-0

[Event "94th FRA-ch Accession 2019"]
[Site "Chartres"]
[Date "2019.08.20"]
[Round "4.3"]
[White "Velten, Paul"]
[Black "Di Nicolantonio, Lucas"]
[Result "1/2-1/2"]
[ECO "D43"]
[WhiteElo "2527"]
[BlackElo "2394"]
[Annotator "ChessBase"]
[PlyCount "100"]
[EventDate "2019.08.17"]
[EventType "swiss"]
[EventCountry "FRA"]
[SourceTitle "playchess.com"]
[Source "ChessBase"]
[SourceQuality "1"]
[TimeControl "40/5400+30:1800+30"]

1. d4 {[%emt 0:00:00]} d5 {[%emt 0:00:00]} 2. c4 {[%emt 0:00:22]} e6 {[%emt 0:00:01]} 3. Nf3 {[%emt 0:01:13]} Nf6 {[%emt 0:00:27]} 4. Nc3 {[%emt 0:01:06]} c6 {[%emt 0:02:22]} 5. Bg5 {[%emt 0:01:29]} h6 {[%emt 0:00:35]} 6. Bxf6 {[%emt 0:04:38]} Qxf6 {[%emt 0:00:10]} 7. e3 {[%emt 0:00:17]} Nd7 {[%emt 0:03:22]} 8. Be2 {[%emt 0:00:55]} g6 {[%emt 0:05:44]} 9. O-O {[%emt 0:00:16]} Bg7 {[%emt 0:00:38]} 10. cxd5 {[%emt 0:00:32]} exd5 {[%emt 0:00:28]} 11. b4 {[%emt 0:00:21]} a6 {[%emt 0:08:57]} 12. a4 {[%emt 0:03:11]} O-O {[%emt 0:03:07]} 13. Qb3 {[%emt 0:06:54]} Rd8 {[%emt 0:12:22]} 14. b5 {[%emt 0:01:52]} a5 {[%emt 0:00:15]} 15. Rac1 {[%emt 0:03:49]} Qd6 {[%emt 0:09:24]} 16. Rfd1 {[%emt 0:08:04]} Nf8 {[%emt 0:02:58]} 17. Nb1 {[%emt 0:01:52]} Ne6 {[%emt 0:09:47]} 18. Nbd2 {[%emt 0:03:46]} Bd7 {[%emt 0:07:31]} 19. bxc6 {[%emt 0:05:16]} bxc6 {[%emt 0:00:22]} 20. Qa2 {[%emt 0:00:48]} c5 {[%emt 0:06:14]} 21. Qa3 {[%emt 0:00:33]} Bf8 {[%emt 0:00:24]} 22. dxc5 {[%emt 0:00:50]} Nxc5 {[%emt 0:00:12]} 23. Bb5 {[%emt 0:06:23]} Bxb5 {[%emt 0:00:21]} 24. axb5 {[%emt 0:00:03]} Qb6 {[%emt 0:01:23]} 25. Rb1 {[%emt 0:00:11]} a4 {[%emt 0:03:30]} 26. Qa2 {[%emt 0:00:04]} Bg7 {[%emt 0:03:57]} 27. Qa3 {[%emt 0:01:54]} Bf8 {[%emt 0:00:33]} 28. Qa2 {[%emt 0:00:05]} Bg7 {[%emt 0:01:22]} 29. Qa3 {[%emt 0:00:04]} Ra5 {[%emt 0:08:34]} 30. Qb4 {[%emt 0:07:58]} a3 {[%emt 0:00:46]} 31. Nd4 {[%emt 0:00:14]} Ra4 {[%emt 0:00:29]} 32. Qc3 {[%emt 0:00:09]} a2 {[%emt 0:02:36]} 33. Ra1 {[%emt 0:00:13]} Ne6 {[%emt 0:01:12]} 34. Qb3 {[%emt 0:00:36]} Nxd4 {[%emt 0:01:01]} 35. exd4 {[%emt 0:00:47]} Qxd4 {[%emt 0:02:05]} 36. Rxa2 {[%emt 0:00:26]} Rb4 {[%emt 0:00:42]} 37. Qf3 {[%emt 0:00:08]} Rxb5 {[%emt 0:00:43]} 38. Nf1 {[%emt 0:00:10]} Qf6 {[%emt 0:02:04]} 39. Qxf6 {[%emt 0:01:21]} Bxf6 {[%emt 0:00:05]} 40. Rad2 {[%emt 0:00:04]} d4 {[%emt 0:01:56]} 41. Rd3 {[%emt 0:30:14]} h5 {[%emt 0:02:46]} 42. Nd2 {[%emt 0:00:00]} Kg7 {[%emt 0:02:06]} 43. g3 {[%emt 0:00:00]} Rb4 {[%emt 0:01:42]} 44. h4 {[%emt 0:00:00]} Rc8 {[%emt 0:01:36]} 45. Kf1 {[%emt 0:00:00]} Rc3 {[%emt 0:03:34]} 46. Ne4 {[%emt 0:00:00]} Rxd3 {[%emt 0:00:28]} 47. Rxd3 {[%emt 0:00:00]} Bd8 {[%emt 0:01:56]} 48. Ke2 {[%emt 0:00:00]} f6 {[%emt 0:01:12]} 49. Ra3 {[%emt 0:00:00]} Bb6 {[%emt 0:09:57]} 50. Kd3 {[%emt 0:00:00]} Kf7 {[%emt 0:04:51]} 1/2-1/2

[Event "94th FRA-ch Accession 2019"]
[Site "Chartres"]
[Date "2019.08.20"]
[Round "4.4"]
[White "Pigeat, Alexandre"]
[Black "Abergel, Thal"]
[Result "1/2-1/2"]
[ECO "D31"]
[WhiteElo "2377"]
[BlackElo "2471"]
[Annotator "ChessBase"]
[PlyCount "251"]
[EventDate "2019.08.17"]
[EventType "swiss"]
[EventCountry "FRA"]
[SourceTitle "playchess.com"]
[Source "ChessBase"]
[SourceQuality "1"]
[TimeControl "40/5400+30:1800+30"]

1. d4 {[%emt 0:00:00]} d5 {[%emt 0:00:00]} 2. c4 {[%emt 0:00:35]} e6 {[%emt 0:00:00]} 3. Nc3 {[%emt 0:00:23]} a6 {[%emt 0:00:07]} 4. cxd5 {[%emt 0:03:13]} exd5 {[%emt 0:00:06]} 5. e3 {[%emt 0:00:49]} Nf6 {[%emt 0:01:06]} 6. Nge2 {[%emt 0:00:48]} Bd6 {[%emt 0:02:02]} 7. Ng3 {[%emt 0:03:31]} O-O {[%emt 0:03:07]} 8. Bd3 {[%emt 0:02:04]} Re8 {[%emt 0:02:42]} 9. O-O {[%emt 0:00:28]} Nc6 {[%emt 0:02:52]} 10. Bc2 {[%emt 0:09:59]} Be6 {[%emt 0:12:23]} 11. h3 {[%emt 0:09:30]} Qd7 {[%emt 0:04:55]} 12. f4 {[%emt 0:01:38]} Ne7 {[%emt 0:01:14]} 13. Qd3 {[%emt 0:16:04]} g6 {[%emt 0:03:31]} 14. Qd1 {[%emt 0:01:16]} Nf5 {[%emt 1:02:55]} 15. Nxf5 {[%emt 0:47:12]} Bxf5 {[%emt 0:00:30]} 16. g4 {[%emt 0:00:30]} Bxc2 {[%emt 0:00:00]} 17. Qxc2 {[%emt 0:00:30]} c6 {[%emt 0:00:00]} 18. Na4 {[%emt 0:00:00]} Qe7 {[%emt 0:00:00]} 19. a3 {[%emt 0:00:00]} h5 {[%emt 0:00:00]} 20. g5 {[%emt 0:00:00]} Ne4 {[%emt 0:00:00]} 21. Nc3 {[%emt 0:00:00]} Qd7 {[%emt 0:00:00]} 22. Qg2 {[%emt 0:00:00]} Qf5 {[%emt 0:00:00]} 23. Rf3 {[%emt 0:00:00]} c5 {[%emt 0:04:00]} 24. Bd2 {[%emt 0:03:30]} cxd4 {[%emt 0:00:30]} 25. exd4 {[%emt 0:00:00]} Re6 {[%emt 0:00:00]} 26. Raf1 {[%emt 0:00:00]} Rae8 {[%emt 0:00:00]} 27. Nd1 {[%emt 0:00:00]} Nxd2 {[%emt 0:00:00]} 28. Qxd2 {[%emt 0:00:00]} Re2 {[%emt 0:00:00]} 29. Qd3 {[%emt 0:00:00]} Qxd3 {[%emt 0:00:00]} 30. Rxd3 {[%emt 0:00:00]} Re1 {[%emt 0:00:00]} 31. Rxe1 {[%emt 0:00:58]} Rxe1+ {[%emt 0:00:00]} 32. Kf2 {[%emt 0:00:05]} Re4 {[%emt 0:00:00]} 33. Nc3 {[%emt 0:00:44]} Rxf4+ {[%emt 0:00:00]} 34. Kg2 {[%emt 0:00:20]} Kg7 {[%emt 0:00:00]} 35. Ne2 {[%emt 0:03:23]} Rf5 {[%emt 0:00:00]} 36. h4 {[%emt 0:00:06]} f6 {[%emt 0:00:00]} 37. gxf6+ {[%emt 0:00:21]} Rxf6 {[%emt 0:01:07]} 38. Rb3 {[%emt 0:00:05]} b5 {[%emt 0:00:16]} 39. Rc3 {[%emt 0:03:01]} b4 {[%emt 0:01:57]} 40. axb4 {[%emt 0:00:00]} Bxb4 {[%emt 0:00:01]} 41. Rc7+ {[%emt 0:31:00]} Kh6 {[%emt 0:31:12]} 42. Ng1 {[%emt 0:01:44]} g5 {[%emt 0:00:00]} 43. hxg5+ {[%emt 0:00:00]} Kxg5 {[%emt 0:00:00]} 44. Rd7 {[%emt 0:00:00]} Rd6 {[%emt 0:00:00]} 45. Rf7 {[%emt 0:00:00]} Kg6 {[%emt 0:00:00]} 46. Rb7 {[%emt 0:00:00]} Ba5 {[%emt 0:00:00]} 47. Nf3 {[%emt 0:00:00]} Kf5 {[%emt 0:00:00]} 48. Re7 {[%emt 0:00:00]} Kf4 {[%emt 0:00:00]} 49. Ne5 {[%emt 0:00:00]} Rb6 {[%emt 0:03:39]} 50. Nd3+ {[%emt 0:00:00]} Kg4 {[%emt 0:00:07]} 51. Rg7+ {[%emt 0:00:00]} Kf5 {[%emt 0:00:36]} 52. Re7 {[%emt 0:00:00]} Kf6 {[%emt 0:00:25]} 53. Re5 {[%emt 0:00:00]} Rb3 {[%emt 0:00:13]} 54. Rxd5 {[%emt 0:00:00]} Bd2 {[%emt 0:00:29]} 55. Nc5 {[%emt 0:00:00]} Rxb2 {[%emt 0:00:19]} 56. Nxa6 {[%emt 0:00:00]} Bg5+ {[%emt 0:00:16]} 57. Kf3 {[%emt 0:00:00]} Rb3+ {[%emt 0:05:53]} 58. Kf2 {[%emt 0:00:00]} Rb2+ {[%emt 0:01:36]} 59. Kf3 {[%emt 0:00:00]} Rb3+ {[%emt 0:00:39]} 60. Kf2 {[%emt 0:00:00]} Bh4+ {[%emt 0:00:24]} 61. Kg2 {[%emt 0:00:00]} Kg6 {[%emt 0:00:09]} 62. Nc5 {[%emt 0:00:00]} Re3 {[%emt 0:00:33]} 63. Re5 {[%emt 0:00:00]} Rg3+ {[%emt 0:00:02]} 64. Kh2 {[%emt 0:00:00]} Ra3 {[%emt 0:00:25]} 65. Re6+ {[%emt 0:00:00]} Kf5 {[%emt 0:05:28]} 66. Re5+ {[%emt 0:00:00]} Kg6 {[%emt 0:00:47]} 67. Re6+ {[%emt 0:00:07]} Kf7 {[%emt 0:00:20]} 68. Rh6 {[%emt 0:13:25]} Bg3+ {[%emt 0:00:50]} 69. Kg2 {[%emt 0:00:05]} h4 {[%emt 0:00:04]} 70. Ra6 {[%emt 0:00:35]} Re3 {[%emt 0:00:15]} 71. Nd7 {[%emt 0:02:26]} Ke7 {[%emt 0:01:39]} 72. Ne5 {[%emt 0:00:08]} h3+ {[%emt 0:00:04]} 73. Kxh3 {[%emt 0:00:55]} Bxe5+ {[%emt 0:00:01]} 74. Kg4 {[%emt 0:00:19]} Bxd4 {[%emt 0:00:12]} 75. Kf4 {[%emt 0:00:13]} Rb3 {[%emt 0:00:20]} 76. Ke4 {[%emt 0:00:17]} Bc5 {[%emt 0:00:07]} 77. Rc6 {[%emt 0:00:21]} Bd6 {[%emt 0:00:06]} 78. Rc8 {[%emt 0:00:47]} Ke6 {[%emt 0:00:15]} 79. Re8+ {[%emt 0:00:13]} Kd7 {[%emt 0:00:10]} 80. Rg8 {[%emt 0:00:07]} Kc6 {[%emt 0:00:33]} 81. Rc8+ {[%emt 0:00:08]} Bc7 {[%emt 0:00:03]} 82. Kd4 {[%emt 0:00:16]} Rb4+ {[%emt 0:00:03]} 83. Kc3 {[%emt 0:00:11]} Rh4 {[%emt 0:00:03]} 84. Kd3 {[%emt 0:00:07]} Kd7 {[%emt 0:00:12]} 85. Rg8 {[%emt 0:00:08]} Ke6 {[%emt 0:00:08]} 86. Re8+ {[%emt 0:00:09]} Kd5 {[%emt 0:00:02]} 87. Re7 {[%emt 0:00:43]} Bd6 {[%emt 0:00:49]} 88. Rd7 {[%emt 0:00:05]} Rh3+ {[%emt 0:00:04]} 89. Ke2 {[%emt 0:00:05]} Ke6 {[%emt 0:00:05]} 90. Ra7 {[%emt 0:00:30]} Kf5 {[%emt 0:00:07]} 91. Ra4 {[%emt 0:00:20]} Bf4 {[%emt 0:00:12]} 92. Rc4 {[%emt 0:00:23]} Ke5 {[%emt 0:10:58]} 93. Ra4 {[%emt 0:00:09]} Re3+ {[%emt 0:00:02]} 94. Kf2 {[%emt 0:00:10]} Kf5 {[%emt 0:00:15]} 95. Ra8 {[%emt 0:00:18]} Rb3 {[%emt 0:00:32]} 96. Ke2 {[%emt 0:00:13]} Re3+ {[%emt 0:00:16]} 97. Kf2 {[%emt 0:00:02]} Rd3 {[%emt 0:00:15]} 98. Ke2 {[%emt 0:00:14]} Rd7 {[%emt 0:00:19]} 99. Kf3 {[%emt 0:00:11]} Be5 {[%emt 0:00:29]} 100. Rf8+ {[%emt 0:00:24]} Bf6 {[%emt 0:00:01]} 101. Ke2 {[%emt 0:00:21]} Ke5 {[%emt 0:00:14]} 102. Re8+ {[%emt 0:00:35]} Kf4 {[%emt 0:00:12]} 103. Rf8 {[%emt 0:00:06]} Rd6 {[%emt 0:00:03]} 104. Re8 {[%emt 0:00:25]} Be5 {[%emt 0:00:55]} 105. Ra8 {[%emt 0:00:21]} Ke4 {[%emt 0:00:06]} 106. Ra4+ {[%emt 0:00:28]} Bd4 {[%emt 0:14:16]} 107. Ra8 {[%emt 0:00:29]} Rb6 {[%emt 0:00:05]} 108. Re8+ {[%emt 0:18:33]} Be5 {[%emt 0:00:01]} 109. Rd8 {[%emt 0:00:10]} Rb3 {[%emt 0:00:22]} 110. Rd7 {[%emt 0:00:16]} Bf6 {[%emt 0:00:19]} 111. Rd6 {[%emt 0:00:21]} Bd4 {[%emt 0:15:58]} 112. Re6+ {[%emt 0:00:10]} Be5 {[%emt 0:00:01]} 113. Re8 {[%emt 0:19:39]} Rb2+ {[%emt 0:00:01]} 114. Kf1 {[%emt 0:00:38]} Kd4 {[%emt 0:01:14]} 115. Kg1 {[%emt 0:00:22]} Bf4 {[%emt 0:01:43]} 116. Kh1 {[%emt 0:01:02]} Be3 {[%emt 0:15:27]} 117. Re7 {[%emt 0:00:09]} Kd3 {[%emt 0:00:08]} 118. Re8 {[%emt 0:00:12]} Rf2 {[%emt 0:01:03]} 119. Ra8 {[%emt 0:00:33]} Ke4 {[%emt 0:00:08]} 120. Re8+ {[%emt 0:00:05]} Kf3 {[%emt 0:00:03]} 121. Rf8+ {[%emt 0:02:00]} Bf4 {[%emt 0:00:06]} 122. Rg8 {[%emt 0:00:29]} Rh2+ {[%emt 0:00:28]} 123. Kg1 {[%emt 0:00:04]} Rh7 {[%emt 0:00:08]} 124. Kf1 {[%emt 0:00:20]} Ra7 {[%emt 0:00:29]} 125. Re8 {[%emt 0:00:12]} Rb7 {[%emt 0:00:15]} 126. Re6 {[%emt 0:00:11]} 1/2-1/2

[Event "94th FRA-ch Accession 2019"]
[Site "Chartres"]
[Date "2019.08.20"]
[Round "4.5"]
[White "Laurent-Paoli, Pierre"]
[Black "Joie, Sebastien"]
[Result "1-0"]
[ECO "D46"]
[WhiteElo "2371"]
[BlackElo "2413"]
[Annotator "NA"]
[PlyCount "61"]
[EventDate "2019.08.17"]
[EventType "swiss"]
[EventCountry "FRA"]
[SourceTitle "playchess.com"]
[Source "ChessBase"]
[SourceQuality "1"]
[TimeControl "40/5400+30:1800+30"]

1. d4 {[%emt 0:00:00]} d5 {[%emt 0:00:00]} 2. c4 {[%emt 0:00:00]} c6 {[%emt 0:00:23]} 3. Nf3 {[%emt 0:00:00]} Nf6 {[%emt 0:00:06]} 4. Nc3 {[%emt 0:00:00]} e6 {[%emt 0:01:14]} 5. e3 {[%emt 0:00:00]} Nbd7 {[%emt 0:00:14]} 6. Qc2 {[%emt 0:00:01]} b6 {[%emt 0:00:36]} 7. Bd3 {[%emt 0:00:59]} Bb7 {[%emt 0:02:41]} 8. O-O {[%emt 0:00:40]} Be7 {[%emt 0:00:07]} 9. b3 {[%emt 0:01:26]} O-O {[%emt 0:00:08]} 10. Bb2 {[%emt 0:00:23]} Qc7 {[%emt 0:00:10]} 11. Qe2 {[%emt 0:10:27]} h6 {[%emt 0:13:31]} 12. Rac1 {[%emt 0:07:38]} Rac8 {[%emt 0:00:25]} 13. Ne5 {[%emt 0:08:52]} Nxe5 {[%emt 0:06:21]} 14. dxe5 {[%emt 0:00:04]} dxc4 {[%emt 0:00:17]} 15. Bxc4 {[%emt 0:18:59]} Nd7 {[%emt 0:00:27]} 16. f4 {[%emt 0:01:45]} b5 {[%emt 0:10:20]} 17. Bd3 {[%emt 0:01:30]} Nc5 {[%emt 0:00:19]} 18. Bb1 {[%emt 0:07:49]} b4 {[%emt 0:01:54]} 19. Ne4 {[%emt 0:00:05]} Nxe4 {[%emt 0:11:53]} 20. Bxe4 {[%emt 0:00:05]} Qa5 {[%emt 0:00:23]} 21. Qc2 {[%emt 0:04:36]} Ba6 {[%emt 0:01:10]} 22. Rf3 {[%emt 0:08:16]} c5 {[%emt 0:00:16]} 23. f5 {[%emt 0:00:25]} Bg5 {[%emt 0:08:25]} 24. Qf2 {[%emt 0:01:39]} Qxa2 {[%emt 0:40:40]} 25. h4 Bxh4 {[%emt 0:00:00]} 26. Qxh4 {[%emt 0:12:32]} Qxb2 {[%emt 0:00:00]} 27. f6 {[%emt 0:01:20]} Qxc1+ {[%emt 0:00:00]} 28. Kh2 {[%emt 0:00:05]} Qc3 {[%emt 0:00:00]} 29. Qf4 {[%emt 0:01:09]} Rfd8 {[%emt 0:00:00]} 30. Rg3 {[%emt 0:01:08]} Rd5 {[%emt 0:00:00]} 31. Bxd5 {[%emt 0:00:48]} 1-0